fUST/lending_fUST_20260427
["ID","MTS","AMOUNT","RATE_DAILY","PERIOD"]
[421211141,1777258251838,-914.43,0.00019452,2]
[421211142,1777258251848,-500.0,0.00019452,2]
[421211143,1777258251858,-500.0,0.00019452,2]
[421211144,1777258251869,-500.0,0.00019452,2]
[421211145,1777258251879,-1133.74,0.00019452,2]
[421211146,1777258251889,-500.0,0.00019452,2]
[421211147,1777258251899,-1868.26,0.00019452,2]
[421211148,1777258251908,-980.43,0.00019452,2]
[421211149,1777258251918,-2260.69,0.00019452,2]
[421211150,1777258251927,-205.14035561,0.00019452,2]
[421211151,1777258251937,-500.0,0.00019452,2]
[421211152,1777258251947,-276.675771,0.00019452,2]
[421211153,1777258251956,-902.67,0.00019452,2]
[421211154,1777258251965,-500.0,0.00019452,2]
[421211155,1777258251975,-615.82,0.00019452,2]
[421211156,1777258251985,-151.0,0.00019452,2]
[421211157,1777258251994,-166.50652,0.00019452,2]
[421211158,1777258252004,-276.675771,0.00019452,2]
[421211159,1777258252014,-500.0,0.00019452,2]
[421211160,1777258252024,-276.675771,0.00019452,2]
[421211161,1777258252034,-276.67577913,0.00019452,2]
[421211162,1777258252047,-519.32673551,0.00019452,2]
[421211163,1777258252057,-500.0,0.00019452,2]
[421211164,1777258252067,-500.0,0.00019452,2]
[421211165,1777258252078,-590.25738196,0.00019452,2]
[421211166,1777258252088,-500.0,0.00019452,2]
[421211167,1777258252098,-683.67,0.00019452,2]
[421211168,1777258252108,-1741.36,0.00019452,2]
[421211169,1777258252117,-500.0,0.00019452,2]
[421211170,1777258252127,-789.46,0.00019452,2]
[421211171,1777258252137,-3220.32,0.00019452,2]
[421211172,1777258252148,-1042.64,0.00019452,2]
[421211173,1777258252158,-500.0,0.00019452,2]
[421211174,1777258252167,-1037.87,0.00019452,2]
[421211175,1777258252177,-500.0,0.00019452,2]
[421211176,1777258252187,-2990.85,0.00019452,2]
[421211177,1777258252197,-500.0,0.00019452,2]
[421211178,1777258252207,-500.0,0.00019452,2]
[421211179,1777258252216,-500.0,0.00019452,2]
[421211180,1777258252226,-500.0,0.00019452,2]
[421211181,1777258252236,-1786.14,0.00019452,2]
[421211182,1777258252246,-1538.79,0.00019452,2]
[421211183,1777258252259,-3067.27,0.00019452,2]
[421211184,1777258252268,-500.0,0.00019452,2]
[421211185,1777258252279,-582.32,0.00019452,2]
[421211186,1777258252289,-2285.02,0.00019452,2]
[421211187,1777258252299,-500.0,0.00019452,2]
[421211188,1777258252308,-584.23,0.00019452,2]
[421211189,1777258252318,-2211.67,0.00019452,2]
[421211190,1777258252328,-567.71617432,0.00019452,2]
[421211191,1777258252338,-1111.22,0.00019452,2]
[421211192,1777258252347,-500.0,0.00019452,2]
[421211193,1777258252357,-1307.13,0.00019452,2]
[421211194,1777258252367,-551.90427626,0.00019452,2]
[421211195,1777258252813,-1385.37636748,0.00013853,2]
[421211196,1777258253336,-300.0,0.00013853,2]
[421211197,1777258253348,-500.68,0.00013853,2]
[421211198,1777258253359,-3692.82124772,0.00013853,2]
[421211199,1777258253370,-2265.967128,0.00013853,2]
[421211200,1777258253381,-1855.1552568,0.00013853,2]
[421211201,1777258253391,-35.8667777,0.00013953,2]
[421211202,1777258253406,-798.23978973,0.00013953,2]
[421211203,1777258253422,-9165.89343257,0.00013953,2]
[421211204,1777258253432,-641.09,0.00014053,2]
[421211205,1777258253441,-1846.874836,0.00019178,2]
[421211206,1777258253451,-611.280831,0.00019178,2]
[421211207,1777258253460,-9228.435191,0.00019178,2]
[421211208,1777258253470,-611.280831,0.00019178,2]
[421211209,1777258253479,-1846.874836,0.00019178,2]
[421211210,1777258253490,-9228.435191,0.00019178,2]
[421211211,1777258253499,-611.280831,0.00019178,2]
[421211212,1777258253509,-1846.874836,0.00019178,2]
[421211213,1777258253519,-9228.435191,0.00019178,2]
[421211214,1777258253528,-611.280831,0.00019178,2]
[421211215,1777258253538,-1846.874836,0.00019178,2]
[421211216,1777258253549,-9228.435191,0.00019178,2]
[421211217,1777258253559,-611.280831,0.00019178,2]
[421211218,1777258253568,-1846.874836,0.00019178,2]
[421211219,1777258253578,-549.41188282,0.00019178,2]
[421211220,1777258253810,-274.29551839,0.00013714,2]
[421211221,1777258253954,-1510.57025055,0.00013714,2]
[421211222,1777258253964,-7718.78873512,0.00019178,2]
[421211223,1777258253976,-960.23457306,0.00019178,2]
[421211224,1777258253986,-611.280831,0.00019178,2]
[421211225,1777258253996,-1846.874836,0.00019178,2]
[421211226,1777258254006,-9228.435191,0.00019178,2]
[421211227,1777258254015,-611.280831,0.00019178,2]
[421211228,1777258254024,-1846.874836,0.00019178,2]
[421211229,1777258254034,-9228.435191,0.00019178,2]
[421211230,1777258254043,-611.280831,0.00019178,2]
[421211231,1777258254052,-1846.874836,0.00019178,2]
[421211232,1777258254062,-151.0,0.00019178,2]
[421211233,1777258254071,-5415.61600247,0.00019178,2]
[421211234,1777258254257,-146.30869575,0.00019178,2]
[421211235,1777258254269,-3666.51049278,0.00019178,2]
[421211236,1777258254278,-611.280831,0.00019178,2]
[421211237,1777258254288,-1846.874836,0.00019178,2]
[421211238,1777258254297,-151.0,0.00019178,2]
[421211239,1777258254308,-7620.42349825,0.00019178,2]
[421211245,1777258867963,-1354.13247733,7.6e-05,2]
[421211246,1777258874880,491.26524,4e-05,2]
[421211247,1777258874907,500.0,4e-05,2]
[421211248,1777258875109,500.0,4e-05,2]
[421211249,1777258875135,500.0,4e-05,2]
[421211250,1777258875160,449.44476,4e-05,2]
[421211253,1777258939971,-5000.0,7.448e-05,2]
[421211254,1777258939997,-239.86422,7.523e-05,2]
[421211255,1777258940022,-526.0,7.523e-05,2]
[421211256,1777258940045,-300.0,7.599e-05,2]
[421211257,1777258940069,-3934.13578,7.6e-05,2]
[421211258,1777258942095,-10000.0,7.6e-05,2]
[421211259,1777258943244,-10000.0,7.6e-05,2]
[421211260,1777258944375,-10000.0,7.6e-05,2]
[421211261,1777258945513,-10000.0,7.6e-05,2]
[421211262,1777258946611,-10000.0,7.6e-05,2]
[421211263,1777258948022,-10000.0,7.6e-05,2]
[421211264,1777258949350,-10000.0,7.6e-05,2]
[421211265,1777258953176,-6615.80814315,7.6e-05,2]
[421211267,1777259098957,-5000.0,7.778e-05,2]
[421211268,1777259098980,-300.0,7.856e-05,2]
[421211269,1777259099003,-3737.0,7.857e-05,2]
[421211275,1777259249083,-299.27851245,7.622e-05,2]
[421211278,1777259353081,-4573.03957528,7.622e-05,2]
[421211279,1777259353102,-4317.54239165,7.699e-05,2]
[421211280,1777259353124,-5000.0,7.777e-05,2]
[421211281,1777259353146,-520.0,7.856e-05,2]
[421211282,1777259353169,-150.0,7.857e-05,2]
[421211283,1777259353191,-7461.89441132,7.857e-05,2]
[421211284,1777259359123,-5283.80093794,7.857e-05,2]
[421211285,1777259360141,-7311.30011811,7.857e-05,2]
[421211286,1777259363157,-13690.50997795,7.857e-05,2]
[421211287,1777259366090,-3900.20285184,7.857e-05,2]
[421211288,1777259366115,-152.0,8.879e-05,7]
[421211289,1777259366140,-152.0,8.879e-05,7]
[421211290,1777259366164,-152.0,8.907e-05,7]
[421211291,1777259366190,-152.0,8.907e-05,7]
[421211292,1777259366213,-152.0,8.907e-05,7]
[421211293,1777259366236,-152.0,8.916e-05,7]
[421211294,1777259366260,-152.0,8.916e-05,7]
[421211295,1777259366284,-152.0,8.916e-05,7]
[421211296,1777259366307,-152.0,8.916e-05,7]
[421211297,1777259366328,-59.82787124,9.857e-05,2]
[421211304,1777259432434,-152.0,8.019e-05,2]
[421211305,1777259432445,-152.0,8.019e-05,2]
[421211306,1777259432455,-152.0,8.019e-05,2]
[421211307,1777259432466,-152.0,8.019e-05,2]
[421211308,1777259432476,-152.0,8.019e-05,2]
[421211309,1777259432485,-117.17212876,9.857e-05,2]
[421211310,1777259432495,-204.0,0.00011857,2]
[421211311,1777259432506,-500.0,0.00012896,2]
[421211312,1777259432517,-500.0,0.00012896,2]
[421211313,1777259432527,-500.0,0.00012896,2]
[421211314,1777259432537,-156.0,0.00013699,2]
[421211315,1777259432547,-1000.0,0.00013699,2]
[421211316,1777259432558,-231.0,0.00013857,2]
[421211317,1777259432568,-151.0,0.000145,2]
[421211318,1777259432578,-1011.55061588,0.00015,7]
[421211319,1777259432588,-258.0,0.00015857,2]
[421211320,1777259432599,-152.0,0.00015969,7]
[421211321,1777259432609,-152.0,0.00015969,7]
[421211322,1777259432619,-152.0,0.00015985,7]
[421211323,1777259432630,-152.0,0.00015985,7]
[421211324,1777259432640,-156.213,0.00016555,2]
[421211327,1777259432650,-154.64994432,0.000169,2]
[421211328,1777259432660,-200.0,0.00016999,2]
[421211329,1777259432670,-394.31208445,0.00016999,2]
[421211350,1777259438724,-12.07977389,0.00016999,2]
[421211351,1777259438734,-296.79263875,0.00016999,2]
[421211353,1777259438743,-211.98696864,0.00016999,2]
[421211359,1777259441027,-288.01303136,0.00016999,2]
[421211360,1777259441036,-500.0,0.00016999,2]
[421211361,1777259441046,-500.0,0.00016999,2]
[421211362,1777259441055,-500.0,0.00016999,2]
[421211363,1777259441065,-364.12180143,0.00016999,2]
[421211364,1777259441074,-500.0,0.00016999,2]
[421211365,1777259441084,-500.0,0.00016999,2]
[421211366,1777259441094,-500.0,0.00016999,2]
[421211367,1777259441103,-500.0,0.00016999,2]
[421211368,1777259441112,-217.56842369,0.00016999,2]
[421211369,1777259441124,-282.43157631,0.00016999,2]
[421211370,1777259441133,-397.31410642,0.00016999,2]
[421211371,1777259441144,-102.68589358,0.00016999,2]
[421211372,1777259441154,-500.0,0.00016999,2]
[421211373,1777259441163,-182.36750825,0.00016999,2]
[421211382,1777259443685,-317.63249175,0.00016999,2]
[421211383,1777259443695,-500.0,0.00016999,2]
[421211384,1777259443705,-500.0,0.00016999,2]
[421211385,1777259443715,-500.0,0.00016999,2]
[421211386,1777259443725,-500.0,0.00016999,2]
[421211387,1777259443735,-550.0,0.00016999,2]
[421211388,1777259443744,-500.0,0.00016999,2]
[421211389,1777259443755,-500.0,0.00016999,2]
[421211390,1777259443764,-500.0,0.00016999,2]
[421211391,1777259443774,-500.0,0.00016999,2]
[421211392,1777259443783,-7171.46223656,0.00017,2]
[421211393,1777259443795,-4528.12701115,0.00017,2]
[421211394,1777259443806,-927.1608562,0.00017,2]
[421211401,1777259447141,-150.0,0.00017,2]
[421211402,1777259447151,-76798.86645017,0.00017,2]
[421211438,1777260231926,-5000.0,6.958e-05,2]
[421211439,1777260231948,-1330.0,7.028e-05,2]
[421211440,1777260231971,-519.0,7.028e-05,2]
[421211441,1777260231994,-3151.0,7.099e-05,2]
[421211449,1777260398130,-166.24000853,6.819e-05,2]
[421211450,1777260442429,-3936.55197079,6.751e-05,2]
[421211451,1777260442452,-169.0,6.751e-05,2]
[421211452,1777260442476,-300.0,6.818e-05,2]
[421211453,1777260442501,-4833.75999147,6.819e-05,2]
[421211454,1777260442525,-150.0,6.853e-05,2]
[421211455,1777260442550,-610.68803774,6.887e-05,2]
[421211456,1777260446172,-434.42231533,6.887e-05,2]
[421211462,1777260549267,-5000.0,6.75e-05,2]
[421211463,1777260549290,-5000.0,6.818e-05,2]
[421211464,1777260549312,-300.0,6.886e-05,2]
[421211465,1777260549334,-154.88964693,6.887e-05,2]
[421211466,1777260549355,-420.0,7.575e-05,2]
[421211467,1777260549380,-300.0,8.088e-05,2]
[421211468,1777260549403,-300.0,8.088e-05,2]
[421211469,1777260549426,-300.0,8.088e-05,2]
[421211470,1777260549448,-300.0,8.088e-05,2]
[421211471,1777260549470,-300.0,8.088e-05,2]
[421211472,1777260549492,-300.0,8.088e-05,2]
[421211473,1777260549514,-300.0,8.088e-05,2]
[421211474,1777260549536,-300.0,8.088e-05,2]
[421211475,1777260549557,-300.0,8.088e-05,2]
[421211476,1777260549579,-300.0,8.088e-05,2]
[421211477,1777260549600,-300.0,8.088e-05,2]
[421211478,1777260549621,-300.0,8.088e-05,2]
[421211479,1777260549646,-300.0,8.088e-05,2]
[421211480,1777260549668,-171.1344571,8.088e-05,2]
[421211481,1777260558098,-128.8655429,8.088e-05,2]
[421211482,1777260558122,-300.0,8.088e-05,2]
[421211483,1777260558143,-587.0,8.332e-05,2]
[421211484,1777260558166,-177.0,8.853e-05,2]
[421211485,1777260558187,-643.0,9.165e-05,2]
[421211486,1777260558207,-250.93973679,9.221e-05,2]
[421211487,1777260558229,-339.95980669,0.0001,2]
[421211517,1777260632825,-373.94064635,9.9e-05,2]
[421211518,1777260632836,-487.18693307,9.9e-05,2]
[421211519,1777260632936,-4138.87242058,9.9e-05,2]
[421211520,1777260632946,-229.66936765,0.0001,2]
[421211521,1777260632955,-151.0,0.00010599,2]
[421211522,1777260632964,-204.0,0.00010853,2]
[421211523,1777260632974,-520.0,0.00012,2]
[421211524,1777260632984,-634.29782707,0.00012,2]
[421211525,1777260632994,-231.0,0.00012853,2]
[421211526,1777260633003,-1000.0,0.00013699,2]
[421211527,1777260633012,-152.0,0.00013761,7]
[421211528,1777260633022,-152.0,0.00013761,7]
[421211530,1777260633031,-152.0,0.00013774,7]
[421211532,1777260633040,-152.0,0.00013774,7]
[421211533,1777260633050,-200.0,0.000139,2]
[421211534,1777260633058,-202.79281697,0.000139,2]
[421211535,1777260633068,-229.83432848,0.00013921,2]
[421211536,1777260633077,-300.0,0.00014048,2]
[421211537,1777260633086,-300.0,0.00014048,2]
[421211538,1777260633096,-300.0,0.00014048,2]
[421211539,1777260633105,-300.0,0.00014048,2]
[421211540,1777260633114,-300.0,0.00014048,2]
[421211541,1777260633124,-300.0,0.00014048,2]
[421211542,1777260633134,-300.0,0.00014048,2]
[421211543,1777260633143,-300.0,0.00014048,2]
[421211544,1777260633153,-300.0,0.00014048,2]
[421211545,1777260633162,-300.0,0.00014048,2]
[421211546,1777260633172,-300.0,0.00014048,2]
[421211547,1777260633181,-300.0,0.00014048,2]
[421211548,1777260633197,-300.0,0.00014048,2]
[421211549,1777260633211,-300.0,0.00014048,2]
[421211550,1777260633221,-300.0,0.00014048,2]
[421211551,1777260633231,-202.31,0.0001424,2]
[421211552,1777260633241,-152.0,0.00014473,7]
[421211553,1777260633251,-152.0,0.00014498,7]
[421211554,1777260633260,-85.98866779,0.00014498,7]
[421211606,1777260639057,-48.26914615,0.00014498,7]
[421211608,1777260639069,-17.74218606,0.00014498,7]
[421211610,1777260639079,-152.0,0.00014512,7]
[421211612,1777260639088,-152.0,0.00014512,7]
[421211614,1777260639098,-152.0,0.00014512,7]
[421211616,1777260639107,-258.0,0.00014853,2]
[421211618,1777260639117,-140.97496663,0.00015009,2]
[421211624,1777260639160,-38.98904057,0.00015009,2]
[421211626,1777260639170,-152.0,0.00015845,7]
[421211628,1777260639179,-152.0,0.00015845,7]
[421211630,1777260639189,-152.0,0.00015864,7]
[421211632,1777260639199,-152.0,0.0001588,7]
[421211634,1777260639208,-200.0,0.00016134,2]
[421211636,1777260639218,-152.0,0.0001644,7]
[421211638,1777260639227,-152.0,0.0001644,7]
[421211640,1777260639237,-152.0,0.00016456,7]
[421211642,1777260639247,-152.0,0.00016456,7]
[421211644,1777260639256,-355.17939693,0.000168,2]
[421211646,1777260639269,-32.96136946,0.000168,2]
[421211648,1777260639278,-285.0,0.00016853,2]
[421211650,1777260639287,-500.0,0.00016868,2]
[421211652,1777260639297,-5226.0058442,0.00016868,2]
[421211654,1777260639307,-3523.9737559,0.00016868,2]
[421211656,1777260639316,-224.77805533,0.000169,2]
[421211658,1777260639326,-155.0,0.00016999,2]
[421211660,1777260639335,-500.0,0.00016999,2]
[421211662,1777260639345,-500.0,0.00016999,2]
[421211664,1777260639354,-500.0,0.00016999,2]
[421211666,1777260639364,-500.0,0.00016999,2]
[421211668,1777260639374,-500.0,0.00016999,2]
[421211670,1777260639383,-500.0,0.00016999,2]
[421211672,1777260639393,-500.0,0.00016999,2]
[421211674,1777260639402,-500.0,0.00016999,2]
[421211676,1777260639411,-500.0,0.00016999,2]
[421211678,1777260639421,-500.0,0.00016999,2]
[421211680,1777260639430,-500.0,0.00016999,2]
[421211682,1777260639440,-500.0,0.00016999,2]
[421211684,1777260639449,-500.0,0.00016999,2]
[421211686,1777260639458,-500.0,0.00016999,2]
[421211688,1777260639468,-500.0,0.00016999,2]
[421211690,1777260639478,-500.0,0.00016999,2]
[421211692,1777260639487,-500.0,0.00016999,2]
[421211694,1777260639497,-500.0,0.00016999,2]
[421211695,1777260639507,-507.40017905,0.00016999,2]
[421211697,1777260639517,-500.0,0.00016999,2]
[421211700,1777260639527,-500.0,0.00016999,3]
[421211701,1777260639536,-500.0,0.00016999,4]
[421211703,1777260639546,-500.0,0.00016999,5]
[421211705,1777260639556,-500.0,0.00016999,6]
[421211707,1777260639567,-500.0,0.00016999,7]
[421211709,1777260639576,-500.0,0.00016999,8]
[421211711,1777260639586,-500.0,0.00016999,9]
[421211713,1777260639595,-500.0,0.00016999,10]
[421211715,1777260639605,-500.0,0.00016999,11]
[421211717,1777260639614,-200.0,0.00016999,2]
[421211719,1777260639623,-524.95987316,0.00016999,2]
[421211721,1777260639632,-418.9387105,0.00016999,2]
[421211723,1777260639642,-500.0,0.00016999,2]
[421211725,1777260639651,-500.0,0.00016999,2]
[421211727,1777260639660,-500.0,0.00016999,2]
[421211729,1777260639670,-500.0,0.00016999,2]
[421211730,1777260639679,-500.0,0.00016999,2]
[421211732,1777260639688,-500.0,0.00016999,2]
[421211734,1777260639698,-500.0,0.00016999,2]
[421211736,1777260639707,-500.0,0.00016999,2]
[421211738,1777260639717,-500.0,0.00016999,2]
[421211740,1777260639727,-555.77255309,0.00016999,2]
[421211742,1777260639736,-500.0,0.00016999,2]
[421211744,1777260639746,-500.0,0.00016999,2]
[421211746,1777260639756,-500.0,0.00016999,2]
[421211748,1777260639765,-500.0,0.00016999,2]
[421211750,1777260639775,-500.0,0.00016999,2]
[421211752,1777260639784,-500.0,0.00016999,2]
[421211754,1777260639794,-500.0,0.00016999,2]
[421211756,1777260639803,-500.0,0.00016999,2]
[421211758,1777260639813,-500.0,0.00016999,2]
[421211760,1777260639823,-500.0,0.00016999,2]
[421211762,1777260639833,-500.0,0.00016999,2]
[421211764,1777260639842,-500.0,0.00016999,2]
[421211767,1777260639852,-500.0,0.00016999,2]
[421211769,1777260639862,-500.0,0.00016999,2]
[421211770,1777260639872,-500.0,0.00016999,2]
[421211772,1777260639882,-500.0,0.00016999,2]
[421211774,1777260639892,-500.0,0.00016999,2]
[421211777,1777260639902,-300.0,0.00016999,2]
[421211778,1777260639911,-500.0,0.00016999,2]
[421211780,1777260639921,-500.0,0.00016999,2]
[421211782,1777260639931,-161.40193645,0.00016999,2]
[421211784,1777260639940,-500.0,0.00016999,2]
[421211786,1777260639950,-500.0,0.00016999,2]
[421211788,1777260639959,-500.0,0.00016999,2]
[421211790,1777260639969,-500.0,0.00016999,2]
[421211792,1777260639978,-386.76919721,0.00016999,2]
[421211794,1777260639988,-529.85100433,0.00016999,2]
[421211796,1777260639998,-500.0,0.00016999,2]
[421211798,1777260640007,-500.0,0.00016999,2]
[421211800,1777260640017,-500.0,0.00016999,2]
[421211802,1777260640026,-500.0,0.00016999,2]
[421211804,1777260640037,-500.0,0.00016999,2]
[421211806,1777260640047,-500.0,0.00016999,2]
[421211809,1777260640057,-350.5538906,0.00016999,2]
[421211811,1777260640066,-14153.83814077,0.00017,2]
[421211813,1777260640078,-1160259.73417101,0.00017,2]
[421211815,1777260640087,-466456.88053338,0.00017,2]
[421211926,1777260641190,-498.60000145,0.00017,2]
[421211928,1777260641340,-509.34019575,0.00017,2]
[421212025,1777260643822,-43706.57205345,0.00017,2]
[421212027,1777260643835,-3795.1,0.00017,2]
[421212030,1777260643847,-1283.82286199,0.00017,2]
[421212032,1777260643859,-1316.27915126,0.00017,2]
[421212037,1777260643902,-18.47111206,0.00017,2]
[421212040,1777260643915,-531.20210472,0.00017,2]
[421212043,1777260643938,-49386.71947253,0.00017,2]
[421212045,1777260643950,-131918.30998846,0.00017,2]
[421212047,1777260643960,-184.22,0.00017,2]
[421212050,1777260643970,-184.22,0.00017,2]
[421212052,1777260643980,-184.22,0.00017,2]
[421212054,1777260643990,-184.22,0.00017,2]
[421212056,1777260644001,-184.22,0.00017,2]
[421212058,1777260644011,-184.22,0.00017,2]
[421212060,1777260644021,-184.22,0.00017,2]
[421212062,1777260644031,-151.0,0.00017,2]
[421212064,1777260644041,-151.0,0.00017,2]
[421212066,1777260644050,-151.0,0.00017,2]
[421212068,1777260644060,-152.0,0.00017,7]
[421212070,1777260644069,-151.0,0.00017,2]
[421212072,1777260644079,-151.0,0.00017,2]
[421212074,1777260644089,-151.0,0.00017,2]
[421212076,1777260644099,-151.0,0.00017,2]
[421212078,1777260644109,-151.0,0.00017,2]
[421212080,1777260644119,-151.0,0.00017,2]
[421212082,1777260644131,-151.0,0.00017,2]
[421212084,1777260644141,-151.0,0.00017,2]
[421212086,1777260644151,-151.0,0.00017,2]
[421212088,1777260644161,-151.0,0.00017,2]
[421212090,1777260644171,-151.0,0.00017,2]
[421212092,1777260644181,-277.49751189,0.00017,2]
[421212094,1777260644191,-152.0,0.00017003,7]
[421212096,1777260644201,-600.0,0.00017136,2]
[421212098,1777260644211,-155.0,0.00017141,2]
[421212101,1777260644222,-500.0,0.00017142,2]
[421212103,1777260644231,-155.0,0.00017282,2]
[421212105,1777260644241,-388.14076636,0.00017321,2]
[421212107,1777260644250,-160.0,0.00017321,3]
[421212109,1777260644260,-500.0,0.00017416,2]
[421212111,1777260644270,-155.0,0.00017424,2]
[421212113,1777260644280,-155.0,0.00017566,2]
[421212115,1777260644290,-500.0,0.0001769,2]
[421212117,1777260644300,-155.0,0.00017707,2]
[421212119,1777260644310,-388.14076636,0.00017842,2]
[421212121,1777260644320,-155.0,0.00017849,2]
[421212123,1777260644329,-500.0,0.00017964,2]
[421212125,1777260644339,-155.0,0.00017991,2]
[421212127,1777260644349,-1906.0,0.00018028,2]
[421212129,1777260644358,-1906.0,0.00018047,2]
[421212131,1777260644368,-1906.0,0.00018075,2]
[421212133,1777260644378,-160.0,0.00018096,4]
[421212135,1777260644388,-1906.0,0.0001811,2]
[421212137,1777260644398,-1906.0,0.00018113,2]
[421212139,1777260644409,-155.0,0.00018132,2]
[421212141,1777260644418,-164.48546112,0.00018145,2]
[421212143,1777260644428,-537.6845,0.00018145,2]
[421212145,1777260644438,-2150.738,0.00018145,2]
[421212147,1777260644447,-1728.45321627,0.00018168,2]
[421212149,1777260644460,-177.54678373,0.00018168,2]
[421212151,1777260644471,-183.45321627,0.00018237,2]
[421212154,1777260644487,-1722.54678373,0.00018237,2]
[421212156,1777260644497,-500.0,0.00018238,2]
[421212158,1777260644507,-155.0,0.00018274,2]
[421212160,1777260644517,-388.14076636,0.00018363,2]
[421212163,1777260644527,-500.0,0.00018408,5]
[421212165,1777260644537,-160.0,0.00018411,7]
[421212167,1777260644547,-1778.83082,0.00018411,7]
[421212168,1777260644557,-1638.08172535,0.00018411,7]
[421212170,1777260644570,-527.37060269,0.00018411,7]
[421212417,1777260646989,-95.23970707,0.00011865,7]
[421212423,1777260647035,-56.76029293,0.00011865,7]
[421212425,1777260647045,-152.0,0.00011865,7]
[421212427,1777260647055,-152.0,0.00013777,7]
[421212429,1777260647066,-1232.20931296,0.00018411,7]
[421212431,1777260647076,-160.0,0.00018411,7]
[421212433,1777260647087,-293.667584,0.00018411,7]
[421212462,1777260647331,-427.335168,0.00018411,7]
[421212464,1777260647341,-170.166563,0.00018411,2]
[421212466,1777260647350,-155.0,0.00018416,2]
[421212468,1777260647361,-160.0,0.00018419,2]
[421212470,1777260647370,-664.93327076,0.00018419,2]
[421213654,1777260756839,-249.86182739,0.00017963,2]
[421213655,1777260756851,-901.60220901,0.00017963,2]
[421213660,1777261642132,-4962.68149433,0.00011897,2]
[421213661,1777261751143,-321.70069745,0.0001166,2]
[421213687,1777261831901,-300.0,0.00011542,2]
[421213689,1777261831911,-580.84696706,0.00011543,2]
[421213699,1777261832007,-3021.85024667,0.00011543,2]
[421213792,1777261838111,-1397.30278627,0.00011543,2]
[421213793,1777261838121,-582.0,0.00011543,2]
[421213794,1777261838131,-4678.29930255,0.0001166,2]
[421213795,1777261838141,-887.9627021,0.00011778,2]
[421213796,1777261838151,-150.0,0.00011957,2]
[421213797,1777261838161,-1021.13705924,0.00012637,2]
[421213799,1777261838170,-300.0,0.00012676,2]
[421213801,1777261838180,-300.0,0.00013694,2]
[421213802,1777261838191,-300.0,0.00013694,2]
[421213803,1777261838201,-300.0,0.00013694,2]
[421213804,1777261838210,-300.0,0.00013694,2]
[421213805,1777261838220,-300.0,0.00013694,2]
[421213806,1777261838230,-300.0,0.00013694,2]
[421213807,1777261838240,-300.0,0.00013694,2]
[421213808,1777261838250,-300.0,0.00013694,2]
[421213809,1777261838259,-300.0,0.00013694,2]
[421213810,1777261838269,-300.0,0.00013694,2]
[421213811,1777261838279,-300.0,0.00013694,2]
[421213812,1777261838289,-300.0,0.00013694,2]
[421213813,1777261838299,-300.0,0.00013694,2]
[421213814,1777261838309,-300.0,0.00013694,2]
[421213815,1777261838318,-300.0,0.00013694,2]
[421213816,1777261838327,-1000.0,0.00013699,2]
[421213817,1777261838337,-177.0,0.00013957,2]
[421213818,1777261838346,-600.0,0.00015009,2]
[421213819,1777261838356,-152.0,0.00015493,7]
[421213820,1777261838366,-152.0,0.00015606,7]
[421213821,1777261838376,-204.0,0.00015957,2]
[421213822,1777261838385,-720.0,0.0001651,2]
[421213823,1777261838394,-160.0,0.00017889,2]
[421213824,1777261838404,-231.0,0.00017957,2]
[421213825,1777261838415,-2150.738,0.00017995,2]
[421213826,1777261838424,-1115.5239323,0.00018036,2]